bitfinex/quotes_SOLUSD_20220129
["timestamp","ask_amount","ask_price","bid_price","bid_amount"]
[1643431794704,51.21949142,94.264,94.112,107.0]
[1643431794905,2.95669142,94.263,94.112,107.0]
[1643431795108,6.0,94.253,94.112,107.0]
[1643431795306,24.1199,94.252,94.112,107.0]
[1643431795505,6.0,94.242,94.113,0.25]
[1643431795727,23.8332,94.264,94.13,255.71]
[1643431795905,33.72687719,94.265,94.14,79.54]
[1643431796105,33.72687719,94.265,94.15,21.32]
[1643431796305,33.72687719,94.265,94.151,107.25]
[1643431796505,33.72687719,94.265,94.152,6.0]
[1643431796705,33.72687719,94.265,94.161,6.0]
[1643431796906,33.72687719,94.265,94.171,107.0]
[1643431797506,33.72687719,94.265,94.17,15.32]
[1643431797808,0.25,94.264,94.171,0.25]
[1643431798804,0.25,94.264,94.171,107.25]
[1643431799009,0.25,94.264,94.171,0.25]
[1643431799409,33.47687719,94.265,94.171,0.25]
[1643431800109,33.47687719,94.265,94.171,107.0]
[1643431800710,2.95669142,94.264,94.155,22.7961]
[1643431800911,6.0,94.255,94.155,22.7961]
[1643431801213,2.95669142,94.264,94.134,107.0]
[1643431801214,6.0,94.254,94.134,107.0]
[1643431801411,15.32,94.25,94.123,24.6971]
[1643431801611,6.0,94.24,94.123,24.6971]
[1643431801912,40.12319005,94.229,94.123,24.6971]
[1643431802110,40.12319005,94.229,94.097,514.61337882]
[1643431802111,6.0,94.219,94.097,514.61337882]
[1643431802312,48.0765,94.218,94.098,107.0]
[1643431802511,6.0,94.208,94.098,107.0]
[1643431802711,6.0,94.208,94.08,15.32]
[1643431802915,15.941,94.2,94.06,15.32]
[1643431803111,6.0,94.197,94.07,6.0]
[1643431803314,2.95669142,94.199,94.07,6.0]
[1643431803515,2.95669142,94.196,94.07,6.0]
[1643431803714,2.95669142,94.196,94.071,23.0731]
[1643431803914,2.95669142,94.196,94.072,107.0]
[1643431804119,24.1905,94.209,94.071,23.0731]
[1643431804120,186.49,94.25,94.082,135.22]
[1643431804315,94.97077011,94.389,94.082,135.22]
[1643431804316,3.65562485,94.229,94.196,2.78357826]
[1643431804517,73.8649,94.356,94.255,19.04611507]
[1643431804715,2.2171072,94.377,94.255,19.04611507]
[1643431804716,15.916,94.36,94.255,19.04611507]
[1643431804915,2.2171072,94.377,94.255,19.04611507]
[1643431805115,36.78185937,94.369,94.255,19.04611507]
[1643431805716,15.917,94.36,94.255,19.04611507]
[1643431805916,31.237,94.36,94.255,19.04611507]
[1643431806716,31.237,94.36,94.209,8.68418933]
[1643431806917,15.922,94.33,94.209,8.68418933]
[1643431807116,35.64783857,94.329,94.209,8.68418933]
[1643431807316,15.32,94.32,94.209,8.68418933]
[1643431808316,72.0,94.319,94.171,24.9654]
[1643431808517,72.0,94.319,94.15,15.32]
[1643431808518,52.47799234,94.309,94.15,15.32]
[1643431808716,175.2445,94.308,94.15,15.32]
[1643431808918,178.20119142,94.308,94.15,15.32]
[1643431809217,6.0,94.298,94.15,31.247]
[1643431809417,15.32,94.29,94.15,31.247]
[1643431809617,6.0,94.28,94.153,0.25]
[1643431809817,21.32,94.28,94.153,0.25]
[1643431810017,6.0,94.279,94.153,0.25]
[1643431810219,41.54919954,94.269,94.15,31.247]
[1643431810419,41.54919954,94.269,94.15,15.32]
[1643431810628,6.0,94.259,94.15,15.32]
[1643431810845,6.0,94.259,94.13,15.32]
[1643431811044,53.5189,94.258,94.15,15.32]
[1643431811446,56.47559142,94.258,94.15,15.32]
[1643431811647,2.95669142,94.257,94.15,15.32]
[1643431812053,6.0,94.247,94.15,15.32]
[1643431812249,41.2429666,94.246,94.15,15.32]
[1643431812649,6.0,94.236,94.15,15.32]
[1643431813849,6.0,94.236,94.151,0.25]
[1643431814050,6.0,94.236,94.151,13.95]
[1643431814651,41.2429666,94.246,94.152,107.0]
[1643431814850,41.2429666,94.246,94.153,0.25]
[1643431815053,41.2429666,94.246,94.16,15.926]
[1643431815252,41.2429666,94.246,94.16,15.32]
[1643431815652,41.2429666,94.246,94.144,107.0]
[1643431815857,41.2429666,94.246,94.15,12.75]
[1643431816254,2.95669142,94.245,94.15,12.75]
[1643431816455,6.0,94.236,94.15,12.75]
[1643431816655,6.0,94.235,94.15,12.75]
[1643431816854,8.95669142,94.235,94.13,12.75]
[1643431817055,2.95669142,94.234,94.13,12.75]
[1643431818060,2.95669142,94.234,94.131,107.0]
[1643431818257,6.0,94.235,94.131,107.25]
[1643431818560,37.42841467,94.224,94.142,107.0]
[1643431818757,37.42841467,94.224,94.15,28.677]
[1643431818957,37.42841467,94.224,94.151,107.0]
[1643431822162,37.42841467,94.224,94.15,12.75]
[1643431822363,37.42841467,94.224,94.13,12.75]
[1643431822761,2.95669142,94.223,94.13,12.75]
[1643431822960,37.42841467,94.224,94.13,12.75]
[1643431824662,37.42841467,94.224,94.131,107.0]
[1643431824862,37.42841467,94.224,94.141,107.0]
[1643431825061,37.42841467,94.224,94.151,107.0]
[1643431825462,37.42841467,94.224,94.162,107.0]
[1643431825663,37.42841467,94.224,94.161,6.0]
[1643431825962,37.42841467,94.224,94.16,12.75]
[1643431828066,37.42841467,94.224,94.161,0.25]
[1643431829067,37.42841467,94.224,94.161,107.0]
[1643431831176,37.42841467,94.224,94.162,0.25]
[1643431831577,37.42841467,94.224,94.161,107.0]
[1643431832275,37.42841467,94.224,94.16,12.75]
[1643431833280,37.42841467,94.224,94.14,12.75]
[1643431833778,37.42841467,94.224,94.139,113.7]
[1643431834581,15.937,94.22,94.139,113.7]
[1643431834977,37.42841467,94.224,94.139,113.7]
[1643431835576,6.0,94.214,94.139,113.7]
[1643431835776,37.42841467,94.224,94.139,113.7]
[1643431836779,37.42841467,94.224,94.14,0.25]
[1643431836997,37.42841467,94.224,94.14,13.0]
[1643431837397,37.42841467,94.224,94.141,4.23197064]
[1643431837798,37.42841467,94.224,94.14,12.75]
[1643431838198,37.42841467,94.224,94.141,4.2331831]
[1643431838598,37.42841467,94.224,94.14,12.75]
[1643431839404,6.0,94.214,94.14,12.75]
[1643431842208,37.42841467,94.224,94.14,12.75]
[1643431842403,37.42841467,94.224,94.141,107.25]
[1643431842604,37.42841467,94.224,94.142,4.23128074]
[1643431842805,37.42841467,94.224,94.143,0.25]
[1643431843003,37.42841467,94.224,94.152,6.0]
[1643431843204,37.42841467,94.224,94.161,107.0]
[1643431843404,37.42841467,94.224,94.171,107.0]
[1643431843804,37.42841467,94.224,94.172,0.25]
[1643431844208,12.75,94.32,94.172,0.25]
[1643431844407,47.8993,94.324,94.181,6.0]
[1643431844605,6.0,94.298,94.19,18.75]
[1643431844804,6.0,94.298,94.191,0.25]
[1643431845207,42.11045648,94.297,94.191,0.25]
[1643431845410,42.11045648,94.297,94.191,107.25]
[1643431845606,6.0,94.287,94.191,107.25]
[1643431846808,6.0,94.287,94.191,107.0]
[1643431847405,6.0,94.287,94.192,0.25]
[1643431848608,6.0,94.28,94.192,0.25]
[1643431848809,46.59541457,94.279,94.192,0.25]
[1643431850011,46.59541457,94.279,94.191,107.0]
[1643431850313,46.59541457,94.279,94.19,28.67]
[1643431850517,15.927,94.27,94.19,12.75]
[1643431852316,46.59541457,94.279,94.19,12.75]
[1643431852516,6.0,94.269,94.19,12.75]
[1643431855617,6.0,94.269,94.174,107.0]
[1643431856017,6.0,94.269,94.17,12.75]
[1643431856018,45.97979001,94.259,94.17,12.75]
[1643431858121,15.931,94.25,94.17,12.75]
[1643431858321,6.0,94.249,94.17,12.75]
[1643431858522,15.931,94.25,94.17,12.75]
[1643431862623,15.931,94.25,94.155,23.8853]
[1643431862824,44.94226999,94.239,94.155,23.8853]
[1643431863025,15.934,94.23,94.155,23.8853]
[1643431863248,15.934,94.23,94.15,12.75]
[1643431863428,44.94226999,94.239,94.15,12.75]
[1643431865831,6.0,94.229,94.15,12.75]
[1643431866733,44.94226999,94.239,94.15,12.75]
[1643431866933,6.0,94.229,94.15,12.75]
[1643431868135,44.94226999,94.239,94.15,12.75]
[1643431868337,6.0,94.229,94.15,12.75]
[1643431869536,6.0,94.219,94.135,1.41251776]
[1643431869736,42.18883061,94.218,94.135,1.41251776]
[1643431869938,42.18883061,94.218,94.13,12.75]
[1643431869939,42.18883061,94.218,94.133,1.41251776]
[1643431870339,42.18883061,94.218,94.131,1.41251776]
[1643431870956,42.18883061,94.218,94.13,14.16251776]
[1643431871559,42.18883061,94.218,94.13,1.41251776]
[1643431871961,42.18883061,94.218,94.14,15.3]
[1643431874164,15.938,94.21,94.14,15.3]
[1643431876563,42.18883061,94.218,94.14,15.3]
[1643431876963,6.0,94.208,94.14,15.3]
[1643431877564,6.0,94.207,94.14,15.3]
[1643431879163,34.61572823,94.199,94.14,15.3]
[1643431879564,34.61572823,94.199,94.114,24.3056]
[1643431879565,34.61572823,94.199,94.117,1.41251776]
[1643431879766,34.61572823,94.199,94.12,15.3]
[1643431880567,6.0,94.189,94.12,15.3]
[1643431880972,24.2521,94.198,94.12,15.3]
[1643431881173,6.0,94.188,94.12,15.3]
[1643431881772,24.2521,94.198,94.12,15.3]
[1643431884378,6.0,94.188,94.12,15.3]
[1643431889510,24.2521,94.198,94.12,15.3]
[1643431889709,34.61572823,94.199,94.121,2.79180429]
[1643431889909,1.47317886,94.256,94.134,1.41251776]
[1643431890111,1.47317886,94.271,94.149,1.41251776]
[1643431890311,1.47317886,94.271,94.16,15.3]
[1643431890510,1.47317886,94.279,94.16,15.3]
[1643431890712,27.7314389,94.287,94.172,1.41251776]
[1643431890912,43.06903119,94.286,94.18,15.3]
[1643431891110,43.06903119,94.286,94.181,24.7062]
[1643431891513,6.0,94.276,94.181,24.7062]
[1643431891710,46.7489,94.275,94.181,24.7062]
[1643431891911,15.928,94.27,94.181,24.7062]
[1643431892112,6.0,94.26,94.181,24.7062]
[1643431892313,6.0,94.26,94.182,109.79180429]
[1643431892511,40.79663593,94.264,94.182,107.0]
[1643431892711,40.79663593,94.264,94.183,0.25]
[1643431895315,40.79663593,94.264,94.184,2.79180429]
[1643431895714,40.79663593,94.264,94.185,0.25]
[1643431895917,3.0,94.328,94.185,0.25]
[1643431895918,1.47317886,94.316,94.2,79.52]
[1643431896118,3.0,94.328,94.21,70.22]
[1643431896315,48.261,94.359,94.22,15.3]
[1643431896316,1.47317886,94.351,94.22,15.3]
[1643431896616,1.47317886,94.358,94.23,6.0]
[1643431896817,32.8157237,94.334,94.24,15.3]
[1643431898017,27.11659142,94.333,94.24,15.3]
[1643431898620,15.918,94.33,94.24,15.3]
[1643431898817,6.0,94.323,94.24,15.3]
[1643431899019,15.918,94.33,94.24,15.3]
[1643431900021,6.0,94.32,94.24,15.3]
[1643431900323,37.04353005,94.319,94.24,15.3]
[1643431902222,74.95669142,94.318,94.221,23.707]
[1643431902421,74.95669142,94.318,94.164,1.41251776]
[1643431902422,50.13879142,94.318,94.164,1.41251776]
[1643431902622,50.13879142,94.318,94.138,2.82177895]
[1643431902623,6.0,94.308,94.19,15.3]
[1643431902822,16.09,94.308,94.153,22.9292]
[1643431903024,27.46891287,94.307,94.16,15.3]
[1643431903223,41.88342945,94.297,94.16,15.3]
[1643431903623,15.929,94.27,94.16,15.3]
[1643431903827,36.75882547,94.268,94.16,15.3]
[1643431904025,6.0,94.258,94.16,15.3]
[1643431904223,24.7368,94.257,94.16,15.3]
[1643431904624,35.58786799,94.246,94.161,107.0]
[1643431904923,35.58786799,94.246,94.16,15.3]
[1643431908526,6.0,94.236,94.161,107.0]
[1643431908726,35.58786799,94.246,94.172,107.0]
[1643431908926,35.58786799,94.246,94.171,6.0]
[1643431908927,35.58786799,94.246,94.181,107.0]
[1643431916435,35.58786799,94.246,94.18,15.3]
[1643431917236,35.58786799,94.246,94.181,107.0]
[1643431920744,35.58786799,94.246,94.18,15.3]
[1643431920943,35.58786799,94.246,94.164,1.41251776]
[1643431921144,35.58786799,94.246,94.164,0.25]
[1643431921543,15.929,94.24,94.16,15.3]
[1643431922644,41.79270993,94.229,94.16,15.3]
[1643431924265,41.79270993,94.229,94.141,1.41251776]
[1643431924468,24.533,94.228,94.14,15.3]
[1643431925067,15.933,94.22,94.14,15.3]
[1643431927070,15.933,94.22,94.14,16.71251776]
[1643431927467,40.60786431,94.209,94.137,113.7]
[1643431927670,45.87525826,94.189,94.137,113.7]
[1643431931074,45.87525826,94.189,94.141,1.41251776]
[1643431931373,45.87525826,94.189,94.137,115.11251776]
[1643431931774,45.87525826,94.189,94.137,113.7]
[1643431932774,45.87525826,94.189,94.139,1.41251776]
[1643431932978,45.87525826,94.189,94.137,113.7]
[1643431933475,45.87525826,94.189,94.138,107.0]
[1643431934077,45.87525826,94.189,94.137,115.11251776]
[1643431934078,45.87525826,94.189,94.137,113.7]
[1643431935076,45.87525826,94.189,94.137,115.11251776]
[1643431935278,45.87525826,94.189,94.138,1.41251776]
[1643431935476,45.87525826,94.189,94.137,113.7]
[1643431935477,45.87525826,94.189,94.139,1.41251776]
[1643431935677,45.87525826,94.189,94.137,113.7]
[1643431939081,45.87525826,94.189,94.138,107.0]
[1643431939282,45.87525826,94.189,94.137,113.7]
[1643431943484,45.87525826,94.189,94.127,1.41251776]
[1643431943686,45.87525826,94.189,94.124,1.41251776]
[1643431943884,45.87525826,94.189,94.123,1.41251776]
[1643431944485,45.87525826,94.189,94.126,1.41251776]
[1643431944685,45.87525826,94.189,94.125,1.41251776]
[1643431946086,45.87525826,94.189,94.123,1.41251776]
[1643431946590,45.87525826,94.189,94.125,1.41251776]
[1643431946788,45.87525826,94.189,94.127,1.41251776]
[1643431947189,45.87525826,94.189,94.134,1.41251776]
[1643431948096,45.87525826,94.189,94.133,1.41251776]
[1643431948300,45.87525826,94.189,94.136,1.41251776]
[1643431948896,45.87525826,94.189,94.137,1.41251776]
[1643431949095,45.87525826,94.189,94.136,1.41251776]
[1643431949296,45.87525826,94.189,94.134,1.41251776]
[1643431950920,45.87525826,94.189,94.141,1.41251776]
[1643431951323,45.87525826,94.189,94.139,1.41251776]
[1643431951822,45.87525826,94.189,94.141,1.41251776]
[1643431952121,45.87525826,94.189,94.142,1.41251776]
[1643431953324,45.87525826,94.189,94.137,1.41982831]
[1643431953524,45.87525826,94.189,94.126,113.7]
[1643431953525,6.0,94.179,94.126,113.7]
[1643431953924,17.54415783,94.178,94.1,15.3]
[1643431954125,6.0,94.168,94.099,2.82177895]
[1643431954326,40.96635783,94.178,94.09,15.3]
[1643431955127,4.08085068,94.159,94.091,4.24103894]
[1643431955330,4.08085068,94.159,94.09,15.3]
[1643431955529,4.08085068,94.159,94.091,4.24087506]
[1643431955729,4.08085068,94.159,94.092,2.79180429]
[1643431955930,4.08085068,94.159,94.093,4.24087506]
[1643431956129,4.08085068,94.159,94.095,107.0]
[1643431956331,4.08085068,94.159,94.096,0.25]
[1643431956529,4.08085068,94.159,94.1,15.3]
[1643431956729,4.08085068,94.159,94.101,4.24087506]
[1643431956930,4.08085068,94.159,94.101,0.25]
[1643431957134,4.08085068,94.159,94.1,15.3]
[1643431958033,6.0,94.149,94.078,2.82177895]
[1643431958236,15.946,94.14,94.08,15.3]
[1643431958432,15.946,94.14,94.083,107.0]
[1643431958632,4.08085068,94.159,94.086,111.24193012]
[1643431958933,16.45330317,94.144,94.091,113.7]
[1643431959332,16.45330317,94.144,94.092,3.04180429]
[1643431959633,16.45330317,94.144,94.093,2.79180429]
[1643431959932,16.45330317,94.144,94.094,0.25]
[1643431960337,16.45330317,94.144,94.095,2.79180429]
[1643431961035,16.45330317,94.144,94.091,113.7]
[1643431961833,24.4446,94.189,94.092,2.79180429]
[1643431962033,15.941,94.17,94.092,109.79180429]
[1643431962234,23.7393,94.169,94.091,113.7]
[1643431962837,21.52369549,94.168,94.091,113.7]
[1643431963436,21.52369549,94.168,94.092,0.25]
[1643431964136,15.943,94.16,94.092,0.25]
[1643431964637,15.943,94.16,94.092,107.25]
[1643431964841,53.125,94.21,94.095,64.22]
[1643431965037,53.125,94.21,94.094,107.0]
[1643431965038,53.125,94.21,94.105,6.0]
[1643431965240,15.937,94.2,94.121,107.0]
[1643431965642,47.5261,94.218,94.122,0.25]
[1643431965842,20.84819479,94.199,94.123,107.0]
[1643431966139,20.84819479,94.199,94.123,109.79180429]
[1643431966341,20.84819479,94.199,94.124,3.04180429]
[1643431966739,20.84819479,94.199,94.125,2.79180429]
[1643431966940,20.84819479,94.199,94.13,15.931]
[1643431967141,20.84819479,94.199,94.14,15.3]
[1643431967740,6.0,94.189,94.12,15.3]
[1643431968139,6.0,94.188,94.1,15.3]
[1643431968340,30.2384,94.188,94.1,15.3]
[1643431968739,30.2384,94.188,94.101,107.0]
[1643431969742,30.2384,94.188,94.101,106.5]
[1643431970343,30.2384,94.188,94.1,15.3]
[1643431971142,0.77681372,94.179,94.1,15.3]
[1643431971542,6.0,94.17,94.08,15.3]
[1643431971943,2.95669142,94.169,94.08,15.3]
[1643431972142,6.0,94.17,94.08,15.3]
[1643431972143,6.0,94.159,94.08,15.3]
[1643431972343,39.53075615,94.158,94.081,45.53132933]
[1643431972544,39.53075615,94.158,94.082,107.0]
[1643431973245,16.61365615,94.158,94.083,2.79180429]
[1643431973443,16.61365615,94.158,94.084,4.23409657]
[1643431973642,16.61365615,94.158,94.094,6.0]
[1643431973843,16.61365615,94.158,94.1,15.3]
[1643431974042,16.61365615,94.158,94.101,41.66106287]
[1643431974442,15.939,94.19,94.102,107.0]
[1643431974647,15.939,94.19,94.103,22.6047]
[1643431974844,15.939,94.19,94.103,129.6047]
[1643431975643,18.27026618,94.189,94.103,129.6047]
[1643431976042,18.27026618,94.189,94.103,22.6047]
[1643431976243,15.941,94.18,94.101,41.66106287]
[1643431976444,6.0,94.179,94.101,41.66106287]
[1643431976645,3.35474233,94.169,94.101,41.66106287]
[1643431977444,3.35474233,94.169,94.1,15.3]
[1643431980546,3.35474233,94.169,94.094,6.0]
[1643431980949,3.35474233,94.169,94.095,6.0]
[1643431981147,3.35474233,94.169,94.094,6.0]
[1643431981950,3.35474233,94.169,94.1,6.0]
[1643431982152,3.35474233,94.169,94.09,15.3]
[1643431982351,6.0,94.159,94.09,15.3]
[1643431982949,2.95669142,94.168,94.09,15.3]
[1643431983153,24.1719,94.167,94.091,41.41541996]
[1643431983358,24.1719,94.167,94.09,15.3]
[1643431984154,2.95669142,94.166,94.09,15.3]
[1643431984352,6.0,94.157,94.09,15.3]
[1643431984553,15.944,94.16,94.09,15.3]
[1643431984953,18.90069142,94.16,94.09,15.3]
[1643431985155,18.90069142,94.16,94.074,24.1013]
[1643431985753,18.90069142,94.16,94.075,40.03234263]
[1643431985953,18.90069142,94.16,94.074,24.1013]
[1643431986655,18.90069142,94.16,94.07,15.3]
[1643431987055,17.62048564,94.149,94.071,72.16334031]
[1643431987556,17.62048564,94.149,94.071,46.2687054]
[1643431988057,27.03509142,94.148,94.071,46.2687054]
[1643431988459,2.95669142,94.147,94.071,46.2687054]
[1643431988860,24.0784,94.148,94.071,46.2687054]
[1643431989261,3.0,94.214,94.082,107.0]
[1643431989460,24.4782,94.213,94.09,15.3]
[1643431989660,6.0,94.204,94.091,107.0]
[1643431989862,6.0,94.203,94.1,6.0]
[1643431990062,15.938,94.2,94.11,15.3]
[1643431990263,15.938,94.2,94.1,15.3]
[1643431990463,6.0,94.19,94.1,15.3]
[1643431990664,22.8318,94.189,94.1,15.3]
[1643431990887,25.78849142,94.189,94.1,15.3]
[1643431991085,3.56133088,94.178,94.1,15.3]
[1643431991291,22.8318,94.177,94.1,15.3]
[1643431991685,15.943,94.17,94.1,15.3]
[1643431992985,2.95669142,94.169,94.071,27.74483866]
[1643431993186,15.947,94.15,94.08,15.3]
[1643431993986,18.02565525,94.149,94.08,15.3]
[1643431994386,15.948,94.14,94.08,15.3]
[1643431995388,15.948,94.14,94.081,34.8213039]
[1643431995589,24.1456,94.148,94.081,34.8213039]
[1643431998089,24.1456,94.148,94.081,34.5713039]
[1643431998491,24.1456,94.148,94.08,15.3]
[1643431999494,24.1456,94.148,94.081,35.95230012]
[1643432000096,24.1456,94.148,94.082,0.25]
[1643432000900,24.1456,94.148,94.081,35.95230012]
[1643432001507,24.1456,94.148,94.08,15.3]
[1643432001800,24.1456,94.148,94.079,15.844]
[1643432006308,24.1456,94.148,94.08,0.25]
[1643432006710,24.1456,94.148,94.08,15.55]
[1643432006910,24.1456,94.148,94.081,107.0]
[1643432007210,24.5326,94.169,94.092,44.44918101]
[1643432007409,24.5326,94.169,94.094,107.0]
[1643432007812,24.5326,94.169,94.095,0.25]
[1643432008009,24.5326,94.169,94.104,6.0]
[1643432008210,18.8595324,94.168,94.1,15.3]
[1643432008409,43.0749324,94.168,94.1,15.3]
[1643432009014,6.0,94.158,94.08,15.3]
[1643432009211,24.5003,94.157,94.08,15.3]
[1643432009414,30.5003,94.157,94.08,15.3]
[1643432010015,15.948,94.15,94.08,15.3]
[1643432010219,2.76547611,94.149,94.08,15.3]
[1643432012017,2.76547611,94.149,94.068,36.53475187]
[1643432012820,2.76547611,94.149,94.06,15.3]
[1643432013820,2.76547611,94.149,94.071,40.17611479]
[1643432014021,2.76547611,94.149,94.061,107.0]
[1643432014620,2.76547611,94.149,94.06,15.3]
[1643432016022,2.76547611,94.149,94.074,45.10350191]
[1643432016223,2.76547611,94.149,94.06,15.3]
[1643432017143,6.0,94.139,94.06,15.3]
[1643432017345,6.0,94.139,94.059,38.76629985]
[1643432017543,6.0,94.139,94.07,15.3]
[1643432017944,2.76547611,94.149,94.07,15.3]
[1643432020147,2.95669142,94.148,94.08,15.3]
[1643432020346,2.76547611,94.149,94.089,6.0]
[1643432020546,2.76547611,94.149,94.09,21.3]
[1643432020747,2.76547611,94.149,94.091,42.43378428]
[1643432021147,2.76547611,94.149,94.092,0.25]
[1643432022447,2.76547611,94.149,94.091,0.25]
[1643432023447,2.76547611,94.149,94.09,15.3]
[1643432026151,2.76547611,94.149,94.081,24.4137]
[1643432026152,6.0,94.139,94.081,24.4137]
[1643432026352,6.0,94.139,94.07,15.3]
[1643432030660,2.76547611,94.149,94.07,15.3]
[1643432030859,2.76547611,94.149,94.066,35.29403143]
[1643432030860,2.76547611,94.149,94.08,15.55]
[1643432031061,2.76547611,94.149,94.09,42.26370377]
[1643432031261,2.76547611,94.149,94.08,15.3]
[1643432031862,2.76547611,94.149,94.081,107.0]
[1643432032264,2.76547611,94.149,94.082,141.9836463]
[1643432032662,2.76547611,94.149,94.082,34.9836463]
[1643432032864,2.76547611,94.149,94.082,141.9836463]
[1643432033763,2.76547611,94.149,94.083,0.25]
[1643432034166,2.76547611,94.149,94.08,15.3]
[1643432034364,6.0,94.139,94.08,15.3]
[1643432035265,6.0,94.139,94.081,38.08473141]
[1643432035768,6.0,94.139,94.08,15.3]
[1643432036969,2.76547611,94.149,94.08,15.3]
[1643432037169,18.8595324,94.128,94.08,15.3]
[1643432037671,6.0,94.118,94.08,15.3]
[1643432037969,18.8595324,94.128,94.08,15.3]
[1643432038170,6.0,94.108,94.08,15.3]
[1643432038369,2.76547611,94.109,94.08,15.3]
[1643432041671,49.1633,94.149,94.08,15.3]
[1643432041871,49.1633,94.149,94.056,23.1212]
[1643432041872,15.949,94.14,94.056,23.1212]
[1643432042079,6.0,94.13,94.053,43.60340089]
[1643432042277,13.34,94.13,94.053,43.60340089]
[1643432042576,13.34,94.13,94.07,15.3]
[1643432042771,16.85356421,94.129,94.08,41.72548868]
[1643432042972,49.1633,94.149,94.08,41.72548868]
[1643432043576,6.0,94.139,94.08,41.72548868]
[1643432043779,49.1633,94.149,94.08,41.72548868]
[1643432043978,19.04612739,94.148,94.08,41.72548868]
[1643432045477,19.04612739,94.148,94.073,24.987]
[1643432045878,19.04612739,94.148,94.089,6.0]
[1643432046078,19.04612739,94.148,94.092,6.0]
[1643432046278,19.04612739,94.148,94.092,113.0]
[1643432046478,19.04612739,94.148,94.093,44.83878041]
[1643432046879,19.04612739,94.148,94.09,15.3]
[1643432047883,6.0,94.138,94.091,43.2024116]
[1643432048682,6.0,94.138,94.09,15.3]
[1643432050191,6.0,94.138,94.07,15.3]
[1643432050389,2.95669142,94.137,94.05,33.50813481]
[1643432050587,8.95669142,94.137,94.048,23.8992]
[1643432050806,6.0,94.137,94.048,23.8992]
[1643432051107,6.0,94.137,94.08,38.37420763]
[1643432052706,6.0,94.138,94.08,38.37420763]
[1643432053304,5.5,94.138,94.08,38.37420763]
[1643432054105,19.04612739,94.148,94.08,38.37420763]
[1643432054309,50.61657116,94.219,94.091,107.0]
[1643432054505,50.61657116,94.219,94.09,21.3]
[1643432054506,47.6611,94.219,94.101,6.0]
[1643432054706,47.6611,94.219,94.111,107.0]
[1643432054905,3.0,94.217,94.112,23.9921]
[1643432055107,3.0,94.217,94.122,6.0]
[1643432055307,3.0,94.217,94.124,35.92423377]
[1643432055308,18.23268423,94.199,94.124,35.92423377]
[1643432055506,18.23268423,94.199,94.134,6.0]
[1643432055706,17.73268423,94.199,94.14,15.3]
[1643432055908,17.73268423,94.199,94.141,45.62699456]
[1643432056110,17.73268423,94.199,94.151,6.0]
[1643432056307,73.3392,94.24,94.152,107.25]
[1643432056606,15.935,94.23,94.152,107.25]
[1643432056807,3.0,94.264,94.162,6.0]
[1643432057007,23.1392,94.277,94.17,15.3]
[1643432057209,23.1392,94.277,94.171,107.0]
[1643432057407,16.20259006,94.215,94.17,15.3]
[1643432058208,16.20259006,94.215,94.15,15.3]
[1643432058408,16.20259006,94.215,94.151,0.25]
[1643432058610,16.20259006,94.215,94.157,6.0]
[1643432058809,16.20259006,94.215,94.158,0.25]
[1643432059009,16.20259006,94.215,94.162,6.0]
[1643432059210,16.20259006,94.215,94.162,107.0]
[1643432059412,16.20259006,94.215,94.171,107.0]
[1643432059610,16.20259006,94.215,94.163,0.25]